fUST/lending_fUST_20240706
["ID","MTS","AMOUNT","RATE_DAILY","PERIOD"]
[331305202,1720206673234,-509.7935155,0.00030756,2]
[331305203,1720206673243,-288.54873536,0.00030756,2]
[331305204,1720206673253,-317.6820451,0.00030756,2]
[331305205,1720206673263,-283.45664934,0.00030756,2]
[331305206,1720206673272,-7500.373823,0.00030756,4]
[331305207,1720206673281,-153.05087922,0.00030756,2]
[331305208,1720206673293,-511.29611507,0.00030756,2]
[331305209,1720206673303,-587.92208219,0.00030756,2]
[331305210,1720206673313,-433.70222597,0.00030756,2]
[331305211,1720206673323,-221.53556508,0.00030756,2]
[331305212,1720206673333,-11557.38,0.00031622,3]
[331305213,1720206673342,-13868.86,0.00031632,3]
[331305214,1720206673351,-1340.58416108,0.00031643,2]
[331305215,1720206673360,-379.78558583,0.00032,120]
[331305216,1720206673369,-88888.0,0.00032278,5]
[331305217,1720206673378,-39519.4683738,0.00032368,4]
[331305218,1720206673387,-80394.16900151,0.00032478,15]
[331305219,1720206673396,-39519.4683738,0.00032478,4]
[331305220,1720206673406,-236.36564553,0.00032487,2]
[331305221,1720206673414,-306.64991586,0.00032487,2]
[331305222,1720206673424,-500.0,0.00032487,2]
[331305223,1720206673433,-500.0,0.00032487,2]
[331305224,1720206673443,-500.0,0.00032487,2]
[331305225,1720206673452,-500.0,0.00032487,2]
[331305226,1720206673461,-500.0,0.00032487,2]
[331305227,1720206673471,-500.0,0.00032487,2]
[331305228,1720206673480,-500.0,0.00032487,2]
[331305229,1720206673489,-500.0,0.00032487,2]
[331305230,1720206673499,-500.0,0.00032487,2]
[331305231,1720206673508,-500.0,0.00032487,2]
[331305232,1720206673518,-500.0,0.00032487,2]
[331305233,1720206673528,-500.0,0.00032487,2]
[331305234,1720206673537,-500.0,0.00032487,2]
[331305235,1720206673547,-500.0,0.00032487,2]
[331305236,1720206673556,-500.0,0.00032487,2]
[331305237,1720206673565,-39654.63546721,0.00032488,2]
[331305238,1720206673575,-289.0,0.00033,2]
[331305239,1720206673584,-1500.68966724,0.00033294,2]
[331305240,1720206673596,-363.656725,0.00033295,2]
[331305241,1720206673605,-156.26240969,0.00033632,7]
[331305242,1720206673615,-264.86125261,0.00033807,2]
[331305243,1720206673625,-215.10199221,0.00033842,4]
[331305244,1720206673634,-701.06567007,0.00033852,7]
[331305245,1720206673643,-360.62808166,0.00033852,7]
[331305246,1720206673653,-79038.9367476,0.00033917,4]
[331305247,1720206673662,-579.29953505,0.00034,2]
[331305248,1720206673672,-524.86454359,0.00034,5]
[331305249,1720206673681,-1000.0,0.00034,34]
[331305250,1720206673691,-152.80906434,0.00034246,7]
[331305251,1720206673700,-39519.4683738,0.0003489,4]
[331305252,1720206673709,-27359.36241467,0.000349,2]
[331305253,1720206673718,-277.4321417,0.00034989,4]
[331305254,1720206673728,-10349.75622969,0.00035,2]
[331305255,1720206673737,-399.36949262,0.00035,2]
[331305256,1720206673747,-1340.58416108,0.00035395,2]
[331305257,1720206673757,-351.32038796,0.00035581,30]
[331305258,1720206673771,-160.13983905,0.00035937,7]
[331305259,1720206673781,-685.51843621,0.00036,30]
[331305260,1720206673790,-289.0,0.00036,2]
[331305261,1720206673800,-154.80649189,0.00037,4]
[331305262,1720206673810,-151.57276843,0.00037708,7]
[331305263,1720206673820,-1000.0,0.00039,39]
[331305264,1720206673829,-150.0,0.00039017,4]
[331305265,1720206673839,-1340.58416108,0.00039148,2]
[331305266,1720206673850,-154.79103211,0.000392,10]
[331305267,1720206673862,-363.656725,0.00039394,2]
[331305268,1720206673873,-150.73437925,0.00039798,7]
[331305269,1720206673883,-379.04509844,0.0003988,120]
[331305270,1720206673893,-151.0,0.00039971,7]
[331305271,1720206673902,-151.0,0.00039971,7]
[331305272,1720206673911,-622.092777,0.00039971,7]
[331305273,1720206673921,-622.092777,0.00039971,7]
[331305274,1720206673930,-2000.0,0.00039972,4]
[331305275,1720206673940,-2000.0,0.00039981,4]
[331305276,1720206673949,-2000.0,0.0003999,4]
[331305277,1720206673959,-39519.4683738,0.0003999,5]
[331305278,1720206673969,-3990.00210664,0.00039999,4]
[331305279,1720206673979,-1819.58274443,0.00039999,4]
[331305280,1720206673988,-10000.0,0.0004,30]
[331305281,1720206673998,-5000.0,0.0004,3]
[331305282,1720206674007,-151.0,0.00040557,7]
[331305283,1720206674017,-151.22207,0.00040557,7]
[331305284,1720206674026,-10000.0,0.00041,31]
[331305285,1720206674036,-8823.13575589,0.00041,30]
[331305286,1720206674046,-151.0,0.00041,7]
[331305287,1720206674055,-39519.4683738,0.0004199,5]
[331305288,1720206674065,-151.0,0.0004199,14]
[331305289,1720206674074,-151.0,0.0004199,14]
[331305290,1720206674083,-399.250692,0.0004199,14]
[331305291,1720206674094,-399.250692,0.0004199,14]
[331305292,1720206674103,-151.0,0.0004199,14]
[331305293,1720206674112,-762.218977,0.0004199,14]
[331305294,1720206674125,-151.0,0.0004199,14]
[331305295,1720206674134,-762.218977,0.0004199,14]
[331305296,1720206674144,-151.0,0.0004199,14]
[331305297,1720206674153,-273.413178,0.0004199,14]
[331305298,1720206674163,-151.0,0.0004199,14]
[331305299,1720206674173,-273.413178,0.0004199,14]
[331305300,1720206674183,-151.03158,0.0004199,14]
[331305301,1720206674192,-151.0,0.0004199,14]
[331305302,1720206674202,-151.0,0.0004199,14]
[331305303,1720206674211,-151.0,0.0004199,14]
[331305304,1720206674220,-151.0,0.0004199,14]
[331305305,1720206674230,-310.0,0.0004199,30]
[331305306,1720206674239,-310.0,0.0004199,30]
[331305307,1720206674248,-310.0,0.0004199,30]
[331305308,1720206674258,-310.0,0.0004199,30]
[331305309,1720206674267,-446.822796,0.0004199,30]
[331305310,1720206674276,-306.475746,0.0004199,14]
[331305311,1720206674285,-306.475746,0.0004199,14]
[331305312,1720206674295,-151.0,0.0004199,14]
[331305313,1720206674304,-151.0,0.0004199,14]
[331305314,1720206674313,-151.0,0.0004199,14]
[331305315,1720206674322,-341.271941,0.0004199,14]
[331305316,1720206674331,-341.271941,0.0004199,14]
[331305317,1720206674340,-51723.02824387,0.00041999,61]
[331305318,1720206674350,-10000.0,0.00042,32]
[331305319,1720206674359,-24908.0,0.00042,7]
[331305320,1720206674368,-151.0,0.00042,14]
[331305321,1720206674377,-151.0,0.00042,14]
[331305322,1720206674386,-151.0,0.00042,14]
[331305323,1720206674395,-151.0,0.00042,14]
[331305324,1720206674404,-151.0,0.00042,14]
[331305325,1720206674413,-151.0,0.00042,14]
[331305326,1720206674423,-151.0,0.00042,14]
[331305327,1720206674432,-151.0,0.00042,14]
[331305328,1720206674441,-154.52113,0.00042,14]
[331305329,1720206674450,-154.52113,0.00042,14]
[331305330,1720206674459,-151.0,0.00042,14]
[331305331,1720206674468,-156.553454,0.00042,14]
[331305332,1720206674480,-156.553454,0.00042,14]
[331305333,1720206674489,-151.0,0.00042,14]
[331305334,1720206674498,-151.0,0.00042,14]
[331305335,1720206674508,-622.092777,0.00042,14]
[331305336,1720206674517,-622.092777,0.00042,14]
[331305337,1720206674526,-151.0,0.00042,14]
[331305338,1720206674535,-151.0,0.00042,14]
[331305339,1720206674545,-151.0,0.00042,14]
[331305340,1720206674555,-923.851618,0.00042,14]
[331305341,1720206674563,-923.851618,0.00042,14]
[331305342,1720206674572,-151.0,0.00042,14]
[331305343,1720206674581,-151.0,0.00042,14]
[331305344,1720206674591,-151.76923,0.00042,14]
[331305345,1720206674606,-151.0,0.00042,14]
[331305346,1720206674615,-151.746885,0.00042,14]
[331305347,1720206674624,-1971.53761651,0.000425,30]
[331305348,1720206674633,-150.78889555,0.0004253,2]
[331305349,1720206674644,-1340.58416108,0.000429,2]
[331305350,1720206674653,-10000.0,0.00043,33]
[331305351,1720206674663,-2381.36381706,0.00043,90]
[331305352,1720206674787,-301.57779109,0.00043244,4]
[331305353,1720206674799,-999.759,0.00043755,2]
[331305354,1720206674812,-151.0,0.00043836,14]
[331305355,1720206674821,-151.0,0.00043836,14]
[331305356,1720206674830,-10000.0,0.00044,34]
[331305357,1720206674844,-1000.0,0.00044,44]
[331305358,1720206674853,-151.0,0.00044,14]
[331305359,1720206674867,-341.271941,0.00044,14]
[331305360,1720206674877,-341.271941,0.00044,14]
[331305361,1720206674886,-338.0579205,0.0004411,2]
[331305362,1720206674895,-169.4,0.00044804,31]
[331305363,1720206674905,-10000.0,0.00045,35]
[331305364,1720206674916,-156.34779854,0.00045,4]
[331305365,1720206674926,-56955.05959838,0.00045,120]
[331305366,1720206674936,-151.0,0.00045,14]
[331305367,1720206674945,-151.0,0.00045,14]
[331305368,1720206674955,-151.0,0.00045,14]
[331305369,1720206674965,-151.0,0.00045,14]
[331305370,1720206674975,-151.0,0.00045,14]
[331305371,1720206674984,-151.0,0.00045,14]
[331305372,1720206674993,-151.0,0.00045,14]
[331305373,1720206675003,-151.0,0.00045,14]
[331305374,1720206675012,-151.0,0.00045,14]
[331305375,1720206675021,-151.0,0.00045,14]
[331305376,1720206675031,-151.0,0.00045,14]
[331305377,1720206675040,-151.0,0.00045,14]
[331305378,1720206675049,-154.52113,0.00045,14]
[331305379,1720206675059,-154.52113,0.00045,14]
[331305380,1720206675068,-151.0,0.00045,14]
[331305381,1720206675077,-156.553454,0.00045,14]
[331305382,1720206675086,-156.553454,0.00045,14]
[331305383,1720206675099,-151.0,0.00045,14]
[331305384,1720206675109,-151.0,0.00045,14]
[331305385,1720206675118,-622.092777,0.00045,14]
[331305386,1720206675127,-151.0,0.00045,14]
[331305387,1720206675136,-622.092777,0.00045,14]
[331305388,1720206675146,-151.0,0.00045,14]
[331305389,1720206675156,-399.250692,0.00045,14]
[331305390,1720206675166,-399.250692,0.00045,14]
[331305391,1720206675175,-151.0,0.00045,14]
[331305392,1720206675185,-762.218977,0.00045,14]
[331305393,1720206675195,-151.0,0.00045,14]
[331305394,1720206675204,-762.218977,0.00045,14]
[331305395,1720206675214,-151.0,0.00045,14]
[331305396,1720206675223,-273.413178,0.00045,14]
[331305397,1720206675232,-151.0,0.00045,14]
[331305398,1720206675241,-273.413178,0.00045,14]
[331305399,1720206675250,-151.0,0.00045,14]
[331305400,1720206675259,-151.0,0.00045,14]
[331305401,1720206675268,-151.0,0.00045,14]
[331305402,1720206675278,-151.0,0.00045,14]
[331305403,1720206675287,-151.0,0.00045,14]
[331305404,1720206675296,-151.0,0.00045,14]
[331305405,1720206675304,-151.392747,0.00045,14]
[331305406,1720206675313,-923.851618,0.00045,14]
[331305407,1720206675323,-923.851618,0.00045,14]
[331305408,1720206675331,-151.0,0.00045,14]
[331305409,1720206675342,-306.475746,0.00045,14]
[331305410,1720206675353,-306.475746,0.00045,14]
[331305411,1720206675363,-151.0,0.00045,14]
[331305412,1720206675375,-151.0,0.00045,14]
[331305413,1720206675385,-151.0,0.00045,14]
[331305414,1720206675395,-151.0,0.00045,14]
[331305415,1720206675404,-153.0,0.00045068,2]
[331305416,1720206675414,-153.0,0.00045068,2]
[331305417,1720206675423,-153.0,0.00045068,2]
[331305418,1720206675433,-324.82950934,0.00045295,3]
[331305419,1720206675444,-363.656725,0.00045494,2]
[331305420,1720206675453,-232.401,0.00045765,2]
[331305421,1720206675462,-150.059,0.00045765,2]
[331305422,1720206675472,-165.722,0.00045765,2]
[331305423,1720206675481,-169.4,0.00045819,31]
[331305424,1720206675490,-152.0,0.00045819,31]
[331305425,1720206675499,-10000.0,0.00046,36]
[331305426,1720206675508,-27684.0,0.00046,14]
[331305427,1720206675517,-151.0,0.00046,14]
[331305428,1720206675526,-151.0,0.00046,14]
[331305429,1720206675535,-341.271941,0.00046,14]
[331305430,1720206675544,-341.271941,0.00046,14]
[331305431,1720206675553,-151.0,0.00046027,120]
[331305432,1720206675562,-151.0,0.00046247,120]
[331305433,1720206675572,-169.4,0.00046327,31]
[331305434,1720206675582,-152.0,0.00046327,31]
[331305435,1720206675591,-373.0,0.000464,23]
[331305436,1720206675600,-151.0,0.00046574,14]
[331305437,1720206675609,-151.0,0.00046574,14]
[331305438,1720206675618,-151.0,0.00046574,14]
[331305439,1720206675627,-4357.22695229,0.00046574,120]
[331305440,1720206675638,-151.0,0.00046574,14]
[331305441,1720206675647,-151.0,0.00046574,14]
[331305442,1720206675656,-154.52113,0.00046574,14]
[331305443,1720206675665,-154.52113,0.00046574,14]
[331305444,1720206675674,-151.0,0.00046574,14]
[331305445,1720206675683,-156.553454,0.00046574,14]
[331305446,1720206675692,-156.553454,0.00046574,14]
[331305448,1720206675701,-151.0,0.00046574,14]
[331305449,1720206675710,-399.250692,0.00046574,14]
[331305450,1720206675720,-399.250692,0.00046574,14]
[331305451,1720206675729,-189.211115,0.00046574,14]
[331305452,1720206675738,-762.218977,0.00046574,14]
[331305453,1720206675747,-151.0,0.00046574,14]
[331305454,1720206675757,-762.218977,0.00046574,14]
[331305455,1720206675770,-151.0,0.00046574,14]
[331305456,1720206675779,-273.413178,0.00046574,14]
[331305457,1720206675788,-152.561443,0.00046574,14]
[331305458,1720206675797,-273.413178,0.00046574,14]
[331305459,1720206675807,-151.0,0.00046574,14]
[331305460,1720206675816,-151.0,0.00046574,14]
[331305461,1720206675825,-151.0,0.00046574,14]
[331305462,1720206675834,-151.0,0.00046574,14]
[331305463,1720206675845,-306.475746,0.00046574,14]
[331305464,1720206675854,-306.475746,0.00046574,14]
[331305465,1720206675865,-151.0,0.00046574,14]
[331305466,1720206675874,-151.0,0.00046574,14]
[331305467,1720206675883,-151.0,0.00046575,14]
[331305468,1720206675892,-151.0,0.00046575,14]
[331305469,1720206675901,-151.0,0.00046575,14]
[331305470,1720206675910,-1000.0,0.00046575,120]
[331305471,1720206675919,-5000.0,0.00046575,120]
[331305472,1720206675928,-5000.0,0.00046575,120]
[331305473,1720206675937,-5000.0,0.00046575,120]
[331305474,1720206675947,-5000.0,0.00046575,120]
[331305475,1720206675955,-5000.0,0.00046575,120]
[331305476,1720206675965,-5000.0,0.00046575,120]
[331305477,1720206675975,-4228.74204044,0.00046575,120]
[331305478,1720206675984,-400.0,0.00046575,60]
[331305479,1720206675993,-3000.0,0.000466,67]
[331305480,1720206676002,-145308.38084026,0.000466,2]
[331305481,1720206676011,-3000.0,0.0004661,67]
[331305482,1720206676020,-3000.0,0.0004662,67]
[331305483,1720206676029,-877.0,0.00046755,2]
[331305484,1720206676038,-151.0,0.00046788,14]
[331305485,1720206676050,-82157.38031228,0.00046789,120]
[331305486,1720206676059,-151.0,0.00046789,14]
[331305487,1720206676069,-151.0,0.00046789,14]
[331305488,1720206676078,-151.0,0.00046789,14]
[331305489,1720206676086,-151.0,0.00046789,14]
[331305490,1720206676097,-151.0,0.00046789,14]
[331305491,1720206676107,-151.0,0.00046789,14]
[331305492,1720206676116,-151.0,0.00046789,14]
[331305493,1720206676125,-151.0,0.00046789,14]
[331305494,1720206676134,-151.0,0.00046789,14]
[331305495,1720206676144,-151.0,0.00046789,14]
[331305496,1720206676153,-154.52113,0.00046789,14]
[331305497,1720206676162,-154.52113,0.00046789,14]
[331305498,1720206676171,-151.0,0.00046789,14]
[331305499,1720206676181,-156.553454,0.00046789,14]
[331305500,1720206676190,-156.553454,0.00046789,14]
[331305501,1720206676199,-151.0,0.00046789,14]
[331305502,1720206676209,-151.0,0.00046789,14]
[331305503,1720206676218,-622.092777,0.00046789,14]
[331305504,1720206676227,-151.0,0.00046789,14]
[331305505,1720206676236,-622.092777,0.00046789,14]
[331305506,1720206676246,-399.250692,0.00046789,14]
[331305507,1720206676255,-399.250692,0.00046789,14]
[331305508,1720206676265,-762.218977,0.00046789,14]
[331305509,1720206676274,-151.0,0.00046789,14]
[331305510,1720206676283,-762.218977,0.00046789,14]
[331305511,1720206676292,-151.0,0.00046789,14]
[331305512,1720206676300,-273.413178,0.00046789,14]
[331305513,1720206676309,-273.413178,0.00046789,14]
[331305514,1720206676318,-151.0,0.00046789,14]
[331305515,1720206676328,-151.0,0.00046789,14]
[331305516,1720206676337,-151.0,0.00046789,14]
[331305517,1720206676348,-151.0,0.00046789,14]
[331305518,1720206676357,-151.0,0.00046789,14]
[331305519,1720206676366,-151.0,0.00046789,14]
[331305520,1720206676375,-923.851618,0.00046789,14]
[331305521,1720206676384,-923.851618,0.00046789,14]
[331305522,1720206676393,-151.0,0.00046789,14]
[331305523,1720206676402,-306.475746,0.00046789,14]
[331305524,1720206676410,-306.475746,0.00046789,14]
[331305525,1720206676420,-151.0,0.00046789,14]
[331305526,1720206676431,-151.0,0.00046789,14]
[331305527,1720206676441,-178.677672,0.00046789,14]
[331305528,1720206676450,-151.0,0.00046789,14]
[331305529,1720206676459,-151.0,0.00046789,14]
[331305530,1720206676468,-341.271941,0.00046789,14]
[331305531,1720206676477,-341.271941,0.00046789,14]
[331305532,1720206676486,-169.4,0.00046834,60]
[331305533,1720206676495,-152.0,0.00046834,60]
[331305534,1720206676504,-166.0,0.00046849,90]
[331305535,1720206676513,-153.0,0.00046849,2]
[331305536,1720206676522,-153.0,0.00046849,2]
[331305537,1720206676531,-206.1408591,0.00046849,2]
[331305538,1720206676540,-206.1408591,0.00046849,2]
[331305539,1720206676549,-153.0,0.00046849,2]
[331305540,1720206676558,-293.3096853,0.00046849,2]
[331305541,1720206676567,-153.0,0.00046849,2]
[331305542,1720206676576,-206.1408591,0.00046849,2]
[331305543,1720206676585,-293.3096853,0.00046849,2]
[331305544,1720206676596,-22810.22,0.000469,120]
[331305545,1720206676604,-151.0,0.000469,14]
[331305546,1720206676614,-10000.0,0.00047,47]
[331305547,1720206676623,-50868.284363,0.00047,30]
[331305548,1720206676632,-212.749852,0.00047,14]
[331305549,1720206676641,-166.0,0.00047,90]
[331305550,1720206676651,-3000.0,0.00047,2]
[331305551,1720206676661,-293.1949976,0.00047123,2]
[331305552,1720206676670,-153.0,0.00047123,120]
[331305553,1720206676678,-153.0,0.00047123,120]
[331305554,1720206676687,-153.0,0.00047123,120]
[331305555,1720206676697,-153.0,0.00047123,120]
[331305556,1720206676708,-153.0,0.00047123,120]
[331305557,1720206676717,-153.0,0.00047123,120]
[331305558,1720206676727,-36000.011,0.000472,120]
[331305559,1720206676736,-151.0,0.000472,14]
[331305560,1720206676747,-151.0,0.000472,14]
[331305561,1720206676755,-151.0,0.000472,14]
[331305562,1720206676769,-151.0,0.000472,14]
[331305563,1720206676778,-151.0,0.000472,14]
[331305564,1720206676787,-151.0,0.000472,14]
[331305565,1720206676796,-151.0,0.000472,14]
[331305566,1720206676808,-154.52113,0.000472,14]
[331305567,1720206676820,-154.52113,0.000472,14]
[331305568,1720206676829,-151.0,0.000472,14]
[331305569,1720206676844,-156.553454,0.000472,14]
[331305570,1720206676855,-156.553454,0.000472,14]
[331305571,1720206676867,-204.154198,0.000472,14]
[331305572,1720206676877,-151.0,0.000472,14]
[331305573,1720206676887,-622.092777,0.000472,14]
[331305574,1720206676896,-622.092777,0.000472,14]
[331305575,1720206676905,-399.250692,0.000472,14]
[331305576,1720206676914,-399.250692,0.000472,14]
[331305577,1720206676923,-762.218977,0.000472,14]
[331305578,1720206676931,-209.924961,0.000472,14]
[331305579,1720206676940,-762.218977,0.000472,14]
[331305580,1720206676950,-273.413178,0.000472,14]
[331305581,1720206676960,-273.413178,0.000472,14]
[331305582,1720206676970,-151.0,0.000472,14]
[331305583,1720206676979,-151.0,0.000472,14]
[331305584,1720206676989,-151.0,0.000472,14]
[331305585,1720206676999,-151.0,0.000472,14]
[331305586,1720206677010,-209.046709,0.000472,14]
[331305587,1720206677020,-151.0,0.000472,14]
[331305588,1720206677030,-923.851618,0.000472,14]
[331305589,1720206677040,-923.851618,0.000472,14]
[331305590,1720206677051,-151.0,0.000472,14]
[331305591,1720206677061,-306.475746,0.000472,14]
[331305592,1720206677071,-306.475746,0.000472,14]
[331305593,1720206677080,-151.0,0.000472,14]
[331305594,1720206677091,-151.0,0.000472,14]
[331305595,1720206677102,-151.0,0.000472,14]
[331305596,1720206677113,-341.271941,0.000472,14]
[331305597,1720206677122,-341.271941,0.000472,14]
[331305598,1720206677131,-169.4,0.00047342,60]
[331305599,1720206677140,-152.0,0.00047342,60]
[331305600,1720206677151,-155.0,0.0004742,54]
[331305601,1720206677159,-151.0,0.00047534,120]
[331305602,1720206677168,-150.62364424,0.00047564,60]
[331305603,1720206677179,-293.3096853,0.00047671,2]
[331305604,1720206677189,-153.0,0.00047671,2]
[331305605,1720206677199,-206.1408591,0.00047671,2]
[331305606,1720206677209,-293.3096853,0.00047671,2]
[331305607,1720206677218,-206.1408591,0.00047671,2]
[331305608,1720206677227,-293.3096853,0.00047671,2]
[331305609,1720206677241,-293.3096853,0.00047671,2]
[331305610,1720206677252,-293.3096853,0.00047671,2]
[331305611,1720206677262,-293.3096853,0.00047671,2]
[331305612,1720206677271,-293.3096853,0.00047671,2]
[331305613,1720206677280,-152.0,0.00047849,60]
[331305614,1720206677289,-10000.0,0.00048,48]
[331305615,1720206677299,-834000.0,0.00048,120]
[331305616,1720206677308,-500000.0,0.00048,120]
[331305617,1720206677317,-500000.0,0.00048,120]
[331305618,1720206677326,-500000.0,0.00048,120]
[331305619,1720206677335,-155.050986,0.00048,14]
[331305620,1720206677344,-273.506535,0.00048,14]
[331305621,1720206677353,-151.0,0.00048,14]
[331305622,1720206677365,-151.0,0.00048,14]
[331305623,1720206677480,-151.0,0.00048,14]
[331305624,1720206677490,-151.0,0.00048,14]
[331305625,1720206677499,-151.0,0.00048,14]
[331305626,1720206677508,-151.0,0.00048,14]
[331305627,1720206677517,-151.0,0.00048,14]
[331305628,1720206677526,-278.830184,0.00048,14]
[331305629,1720206677535,-151.0,0.00048,14]
[331305630,1720206677545,-151.0,0.00048,14]
[331305631,1720206677555,-151.0,0.00048,14]
[331305632,1720206677564,-151.0,0.00048,14]
[331305633,1720206677573,-151.0,0.00048,14]
[331305634,1720206677583,-151.0,0.00048,14]
[331305635,1720206677592,-151.0,0.00048,14]
[331305636,1720206677601,-233.249176,0.00048,14]
[331305637,1720206677611,-151.0,0.00048,14]
[331305638,1720206677620,-251.87286,0.00048,14]
[331305639,1720206677629,-151.0,0.00048,14]
[331305640,1720206677639,-200.971202,0.00048,14]
[331305641,1720206677648,-154.52113,0.00048,14]
[331305642,1720206677657,-154.52113,0.00048,14]
[331305643,1720206677666,-154.52113,0.00048,14]
[331305644,1720206677675,-154.52113,0.00048,14]
[331305645,1720206677684,-154.52113,0.00048,14]
[331305646,1720206677693,-154.52113,0.00048,14]
[331305647,1720206677702,-154.52113,0.00048,14]
[331305648,1720206677710,-154.52113,0.00048,14]
[331305649,1720206677719,-151.0,0.00048,14]
[331305650,1720206677728,-151.0,0.00048,14]
[331305651,1720206677737,-151.0,0.00048,14]
[331305652,1720206677746,-156.553454,0.00048,14]
[331305653,1720206677755,-156.553454,0.00048,14]
[331305654,1720206677766,-156.553454,0.00048,14]
[331305655,1720206677775,-156.553454,0.00048,14]
[331305656,1720206677785,-156.553454,0.00048,14]
[331305657,1720206677794,-156.553454,0.00048,14]
[331305658,1720206677803,-156.553454,0.00048,14]
[331305659,1720206677811,-156.553454,0.00048,14]
[331305660,1720206677820,-151.0,0.00048,14]
[331305661,1720206677829,-151.0,0.00048,14]
[331305662,1720206677844,-151.0,0.00048,14]
[331305663,1720206677855,-272.327486,0.00048,14]
[331305664,1720206677866,-622.092777,0.00048,14]
[331305665,1720206677878,-622.092777,0.00048,14]
[331305666,1720206677887,-622.092777,0.00048,14]
[331305667,1720206677896,-622.092777,0.00048,14]
[331305668,1720206677905,-622.092777,0.00048,14]
[331305669,1720206677914,-622.092777,0.00048,14]
[331305670,1720206677923,-622.092777,0.00048,14]
[331305671,1720206677932,-622.092777,0.00048,14]
[331305672,1720206677942,-399.250692,0.00048,14]
[331305673,1720206677951,-399.250692,0.00048,14]
[331305674,1720206677962,-399.250692,0.00048,14]
[331305675,1720206677971,-399.250692,0.00048,14]
[331305676,1720206677980,-399.250692,0.00048,14]
[331305677,1720206677990,-399.250692,0.00048,14]
[331305678,1720206677999,-399.250692,0.00048,14]
[331305679,1720206678009,-399.250692,0.00048,14]
[331305680,1720206678022,-762.218977,0.00048,14]
[331305681,1720206678033,-762.218977,0.00048,14]
[331305682,1720206678044,-762.218977,0.00048,14]
[331305683,1720206678053,-762.218977,0.00048,14]
[331305684,1720206678063,-762.218977,0.00048,14]
[331305685,1720206678072,-762.218977,0.00048,14]
[331305686,1720206678081,-762.218977,0.00048,14]
[331305687,1720206678090,-762.218977,0.00048,14]
[331305688,1720206678099,-273.413178,0.00048,14]
[331305689,1720206678108,-273.413178,0.00048,14]
[331305690,1720206678118,-273.413178,0.00048,14]
[331305691,1720206678127,-273.413178,0.00048,14]
[331305692,1720206678138,-273.413178,0.00048,14]
[331305693,1720206678147,-273.413178,0.00048,14]
[331305694,1720206678157,-273.413178,0.00048,14]
[331305695,1720206678166,-273.413178,0.00048,14]
[331305696,1720206678176,-151.0,0.00048,14]
[331305697,1720206678185,-151.0,0.00048,14]
[331305698,1720206678195,-151.0,0.00048,14]
[331305699,1720206678204,-151.0,0.00048,14]
[331305700,1720206678213,-151.0,0.00048,14]
[331305701,1720206678222,-151.0,0.00048,14]
[331305702,1720206678232,-151.0,0.00048,14]